[Event "Polish Youth B18 Championship 2023"]
[Site "Jastrzebia Gora"]
[Date "2023.03.13"]
[Round "3.22"]
[White "Czarniecki, Pawel"]
[Black "Bem, Tymoteusz"]
[Result "1/2-1/2"]
[ECO "B20"]
[WhiteElo "1625"]
[BlackElo "1748"]
[Annotator "NA RC COMBH"]
[PlyCount "107"]
[EventDate "2023.03.11"]
[EventType "swiss"]
[EventCountry "POL"]
[SourceTitle "playchess.com"]
[Source "ChessBase"]
[SourceQuality "1"]
[TimeControl "40/5400+30:1800+30"]

1. e4 {[%emt 0:00:03]} c5 {[%emt 0:00:05]} 2. a3 {[%emt 0:00:05]} g6 {[%emt 0:00:18]} 3. Nc3 {[%emt 0:00:06]} Bg7 {[%emt 0:00:24]} 4. Bc4 {[%emt 0:00:06]} Nc6 {[%emt 0:00:16]} 5. d3 {[%emt 0:00:24]} e6 {[%emt 0:00:20]} 6. Ba2 {[%emt 0:00:11]} Nge7 {[%emt 0:00:28]} 7. Bd2 {[%emt 0:01:38]} Rb8 {[%emt 0:10:22]} 8. a4 {[%emt 0:14:18]} a6 {[%emt 0:02:15]} 9. Qc1 {[%emt 0:06:28]} h6 {[%emt 0:07:31]} 10. f4 {[%emt 0:05:23]} b5 {[%emt 0:01:39]} 11. axb5 {[%emt 0:01:34]} axb5 {[%emt 0:00:39]} 12. Nf3 {[%emt 0:00:28]} d5 {[%emt 0:07:49]} 13. O-O {[%emt 0:02:42]} c4 {[%emt 0:04:22]} 14. Kh1 {[%emt 0:02:26]} h5 {[%emt 0:11:41]} 15. Ne2 {[%emt 0:04:26]} O-O {[%emt 0:04:56]} 16. e5 {[%emt 0:06:08]} Nf5 {[%emt 0:03:27]} 17. d4 {[%emt 0:01:11]} Qb6 {[%emt 0:01:19]} 18. c3 {[%emt 0:00:12]} Ra8 {[%emt 0:00:39]} 19. h3 {[%emt 0:07:57]} Bd7 {[%emt 0:10:03]} 20. g4 {[%emt 0:02:15]} hxg4 {[%emt 0:00:32]} 21. hxg4 Nfe7 {[%emt 0:00:54]} 22. b4 {[%emt 0:06:41]} Ra4 {[%emt 0:03:08]} 23. Qb2 {[%emt 0:01:17]} Rfa8 {[%emt 0:00:05]} 24. Kg2 {[%emt 0:01:01]} Qa7 {[%emt 0:02:15]} 25. Nc1 {[%emt 0:00:14]} Kf8 {[%emt 0:05:00]} 26. Rh1 {[%emt 0:00:51]} Ng8 {[%emt 0:01:18]} 27. Rh7 {[%emt 0:03:01]} f6 {[%emt 0:09:37]} 28. Qc2 {[%emt 0:03:03]} Be8 {[%emt 0:00:46]} 29. f5 {[%emt 0:05:55]} gxf5 {[%emt 0:03:35]} 30. gxf5 {[%emt 0:01:19]} Qf7 {[%emt 0:01:44]} 31. Nh4 {[%emt 0:06:52]} exf5 {[%emt 0:00:55]} 32. Qxf5 {[%emt 0:03:11]} Nce7 {[%emt 0:01:42]} 33. Qh3 {[%emt 0:10:49]} fxe5 {[%emt 0:01:52]} 34. Ne2 {[%emt 0:02:40]} e4 {[%emt 0:02:30]} 35. Rf1 {[%emt 0:00:57]} Nf6 {[%emt 0:00:01]} 36. Bh6 {[%emt 0:00:44]} Rxa2 {[%emt 0:01:43]} 37. Qe3 {[%emt 0:01:28]} Ng6 {[%emt 0:02:02]} 38. Rxf6 {[%emt 0:00:48]} Nxh4+ {[%emt 0:00:22]} 39. Kh1 {[%emt 0:00:14]} Qxf6 {[%emt 0:00:36]} 40. Bxg7+ {[%emt 0:00:00]} Qxg7 {[%emt 0:00:00]} 41. Qf4+ {[%emt 0:02:49]} Bf7 {[%emt 0:05:53]} 42. Qd6+ {[%emt 0:11:54]} Kg8 {[%emt 0:00:32]} 43. Rxg7+ {[%emt 0:00:21]} Kxg7 {[%emt 0:00:02]} 44. Qe5+ {[%emt 0:00:12]} Kg8 {[%emt 0:00:17]} 45. Qg5+ {[%emt 0:00:47]} Ng6 {[%emt 0:00:08]} 46. Nf4 {[%emt 0:01:10]} Rf2 {[%emt 0:00:27]} 47. Nh3 {[%emt 0:00:25]} Ra1+ {[%emt 0:00:05]} 48. Ng1 {[%emt 0:00:06]} Rff1 {[%emt 0:00:12]} 49. Qd8+ {[%emt 0:00:37]} Kg7 {[%emt 0:00:12]} 50. Kh2 {[%emt 0:00:17]} Rxg1 {[%emt 0:00:28]} 51. Qd7 {[%emt 0:00:19]} Rg5 {[%emt 0:02:11]} 52. Qh3 {[%emt 0:00:23]} Nf4 {[%emt 0:00:31]} 53. Qh6+ {[%emt 0:00:10]} Kg8 {[%emt 0:00:40]} 54. Qh8+ {[%emt 0:00:05]} 1/2-1/2

[Event "Polish Youth B18 Championship 2023"]
[Site "Jastrzebia Gora"]
[Date "2023.03.14"]
[Round "4.1"]
[White "Luberanski, Jakub"]
[Black "Dzida, Kamil"]
[Result "1/2-1/2"]
[ECO "E06"]
[WhiteElo "2242"]
[BlackElo "2333"]
[Annotator "TA"]
[PlyCount "63"]
[EventDate "2023.03.11"]
[EventType "swiss"]
[EventCountry "POL"]
[SourceTitle "playchess.com"]
[Source "ChessBase"]
[SourceQuality "1"]
[TimeControl "40/5400+30:1800+30"]

{[%evp 12,63,30,8,14,0,0,6,0,0,31,23,29,-2,42,28,34,34,68,63,66,63,66,0,0,0,0,0,0,0,0,0,0,-82,-79,-73,-75,-79,0,-6,0,0,0,0,0,0,0,-8,-8,-8,-8,-8,-8,-8]} 1. d4 {[%emt 0:01:29]} Nf6 {[%emt 0:00:08]} 2. c4 {[%emt 0:00:05]} e6 {[%emt 0:00:05]} 3. Nf3 {[%emt 0:00:03]} d5 {[%emt 0:00:05]} 4. g3 {[%emt 0:00:03]} Be7 {[%emt 0:02:02]} 5. Bg2 {[%emt 0:00:47]} O-O {[%emt 0:00:07]} 6. O-O {[%emt 0:00:04]} dxc4 {[%emt 0:00:04]} 7. Qc2 {[%emt 0:00:14]} b6 {[%emt 0:00:07] E05: Open Catalan: 5 Nf3 Be7.} 8. Ne5 {[%emt 0:12:55]} Qxd4 {[%emt 0:00:05]} 9. Bxa8 {[%emt 0:00:09]} Qxe5 {[%emt 0:00:04]} 10. Bf3 {[%emt 0:01:16]} Nd5 {[%emt 0:00:30]} 11. Qxc4 {[%emt 0:03:21]} Ba6 {[%emt 0:07:35]} 12. Qe4 {[%emt 0:00:36]} Nc6 {[%emt 0:10:35][%cal Bb8c6,Bc6d4,Bd4c2][%mdl 32] [#]} (12... Qxe4 {simplifies} 13. Bxe4 Rd8 14. Re1 Nc6) 13. Nc3 $1 {[%emt 0:10:47][%cal Bb1c3,Bc3d5,Bd5f4][%mdl 32]} Qxe4 {[%emt 0:12:31]} (13... Nxc3 14. bxc3) 14. Bxe4 {[%emt 0:01:21]} Nd4 {[%emt 0:00:05]} 15. Bxd5 {[%emt 0:12:21]} exd5 {[%emt 0:00:06][%cal Be6d5,Bd5d4,Bd4d3][%mdl 32]} 16. Rd1 $1 {[%emt 0:00:02]} Nc2 {[%emt 0:27:15]} 17. Rb1 {[%emt 0:01:02]} (17. Nxd5 $1 $14 Bd6 18. Rb1 Bxe2 19. Rd2) 17... d4 $1 $11 {[%emt 0:02:08]} 18. Nd5 {[%emt 0:08:05]} Bd6 {[%emt 0:00:38] [#]} 19. Bf4 $146 {[%emt 0:09:38] [#] Bxd6 would be deadly.} ({Predecessor:} 19. Rd2 d3 20. exd3 Ne1 21. Rd1 Bxd3 22. Ra1 Nc2 23. Rxd3 Nxa1 24. Bf4 Bxf4 25. Nxf4 {½-½ Randil,L (1953)-Thenuka,K (1740) SRI-ch Nugegoda 2019 (6)}) 19... Bxe2 {[%emt 0:07:53]} 20. Bxd6 {[%emt 0:00:20]} cxd6 {[%emt 0:00:06]} 21. Rd2 $1 {[%emt 0:00:30][%csl LRc2,LRe2]} d3 {[%emt 0:00:04]} 22. Nf4 {[%emt 0:00:26]} (22. Rc1 $11 {remains equal.}) 22... Nd4 $17 {[%emt 0:02:19] Hoping for ...Nf3+.} 23. Kg2 {[%emt 0:00:29][%cal Of4e2] Nxe2! is the strong threat.} Bf3+ {[%emt 0:00:14]} 24. Kf1 {[%emt 0:06:14][%cal Ob1e1]} Bb7 {[%emt 0:01:23]} ({Black should try} 24... Be4 $17 {aiming for ...Nf3.} 25. Rxd3 Nf3 26. Rxf3 Bxf3) 25. Rbd1 {[%emt 0:14:02] The position is equal.} Re8 {[%emt 0:09:27]} 26. Rxd3 {[%emt 0:02:50]} Ba6 {[%emt 0:00:04][%cal Og7g5]} 27. Kg2 {[%emt 0:00:04]} Bxd3 {[%emt 0:00:03]} 28. Rxd3 {[%emt 0:00:04]} Ne6 {[%emt 0:00:05]} 29. Rxd6 {[%emt 0:02:00]} Nxf4+ {[%emt 0:00:04]} 30. gxf4 {[%emt 0:00:04]} g6 {[%emt 0:00:18]} 31. Rd7 {[%emt 0:00:29]} Re2 {[%emt 0:00:07]} 32. Rxa7 {[%emt 0:00:12] Weighted Error Value: White=0.13 (very precise) /Black=0.13 (very precise)} 1/2-1/2

[Event "Polish Youth B18 Championship 2023"]
[Site "Jastrzebia Gora"]
[Date "2023.03.14"]
[Round "4.2"]
[White "Kacprzak, Kacper"]
[Black "Kaliszuk, Kamil"]
[Result "1-0"]
[ECO "C95"]
[WhiteElo "2248"]
[BlackElo "2217"]
[Annotator "TA"]
[PlyCount "69"]
[EventDate "2023.03.11"]
[EventType "swiss"]
[EventCountry "POL"]
[SourceTitle "playchess.com"]
[Source "ChessBase"]
[SourceQuality "1"]
[TimeControl "40/5400+30:1800+30"]

{[%evp 24,69,33,33,38,36,45,44,40,33,43,31,59,61,60,48,59,63,50,67,133,105,158,69,146,153,155,148,204,139,185,196,177,183,202,187,152,-391,231,239,420,429,397,437,486,462,489,489]} 1. e4 {[%emt 0:00:03]} e5 {[%emt 0:00:29]} 2. Nf3 {[%emt 0:00:07]} Nc6 {[%emt 0:00:14]} 3. Bb5 {[%emt 0:00:04]} a6 {[%emt 0:00:41]} 4. Ba4 {[%emt 0:00:05]} Nf6 {[%emt 0:00:26]} 5. O-O {[%emt 0:00:06]} Be7 {[%emt 0:01:09]} 6. Re1 {[%emt 0:00:16]} b5 {[%emt 0:01:03]} 7. Bb3 {[%emt 0:00:04]} d6 {[%emt 0:00:40]} 8. c3 {[%emt 0:00:06]} O-O {[%emt 0:00:48]} 9. h3 {[%emt 0:00:03]} Nb8 {[%emt 0:02:46]} 10. d4 {[%emt 0:00:10]} Nbd7 {[%emt 0:00:07]} 11. c4 {[%emt 0:00:19]} c6 {[%emt 0:13:28]} 12. Nc3 {[%emt 0:00:55]} Bb7 {[%emt 0:02:29]} 13. a3 {[%emt 0:00:36]} h6 {[%emt 0:16:43] C95: Closed Ruy Lopez: Breyer Variation with 10 d4.} 14. Qc2 {[%emt 0:12:36]} Re8 {[%emt 0:05:21]} 15. Be3 {[%emt 0:08:09]} Bf8 {[%emt 0:11:38] [#] White is slightly better.} 16. cxb5 $146 {[%emt 0:02:43]} ({Predecessor:} 16. dxe5 Nxe5 17. Nxe5 dxe5 18. Rad1 Qe7 19. Ba2 Red8 20. b4 Rxd1 21. Rxd1 Rd8 22. Bc5 Rxd1+ 23. Qxd1 {½-½ Gharamian,T (2676)-Harikrishna,P (2672) Bundesliga 1112 2011 (3.1)}) 16... cxb5 {[%emt 0:02:53]} 17. Rad1 {[%emt 0:01:50]} Qc7 {[%emt 0:03:40]} 18. Qb1 {[%emt 0:02:56]} exd4 {[%emt 0:09:12]} 19. Bxd4 {[%emt 0:01:23]} Nc5 {[%emt 0:03:18]} 20. Bc2 {[%emt 0:02:50] Strongly threatening Bxf6.} Nfd7 {[%emt 0:02:43]} 21. Nd5 {[%emt 0:22:51]} Bxd5 {[%emt 0:02:03]} (21... Qd8 $14) 22. exd5 $16 {[%emt 0:00:05]} Ne5 {[%emt 0:02:12]} (22... Nb6 $142) 23. Nd2 {[%emt 0:08:38]} (23. Nh2 $1 $16) 23... Qb7 {[%emt 0:10:32]} (23... Ncd7 $14) 24. b4 {[%emt 0:18:22]} Ncd7 {[%emt 0:02:12]} 25. f4 $1 {[%emt 0:06:09]} (25. Bh7+ Kh8 $16) 25... Nc4 {[%emt 0:02:47]} (25... Ng6 $16) 26. Nxc4 {[%emt 0:00:11]} (26. Bh7+ $6 Kh8 $16) 26... bxc4 {[%emt 0:00:01] [#]} (26... Rxe1+ $16 {was worth a try.} 27. Rxe1 bxc4) 27. Rxe8 $1 $18 {[%emt 0:01:37]} Rxe8 {[%emt 0:00:04] [#]} 28. Ba4 {[%emt 0:00:04] Inhibits Qb5.} ({Resist} 28. Bh7+ Kh8 $16) 28... Rc8 {[%emt 0:03:38]} 29. Qe4 {[%emt 0:01:28]} Nf6 {[%emt 0:00:52]} 30. Bc6 $2 {[%emt 0:03:08] White is more active.} (30. Qf5 $16 {keeps the pressure on.}) 30... Nxe4 $4 {[%emt 0:00:44][%mdl 8192]} (30... Qxc6 $19 {avoids the disaster.} 31. Bxf6 Qa4) 31. Bxb7 {[%emt 0:00:05][%cal Bc6b7,Bb7a6,Ba6d3][%mdl 32] A strong pair of Bishops.} Rc7 {[%emt 0:00:23]} (31... Rb8 {is a better defense.}) 32. Bxa6 {[%emt 0:02:05]} c3 {[%emt 0:00:24]} 33. Rc1 {[%emt 0:01:01]} c2 {[%emt 0:00:46]} 34. Bd3 {[%emt 0:00:04][%csl LRc2,LRe4]} Nc3 {[%emt 0:00:29]} 35. Rxc2 {[%emt 0:01:05] Weighted Error Value: White=0.39/Black=0.53} (35. Bxc2 $2 {perishes.} Ne2+ 36. Kf2 Nxc1 $19) 1-0

[Event "Polish Youth B18 Championship 2023"]
[Site "Jastrzebia Gora"]
[Date "2023.03.14"]
[Round "4.3"]
[White "Turski, Bartlomiej"]
[Black "Zdybel, Przemyslaw"]
[Result "0-1"]
[ECO "C55"]
[WhiteElo "2352"]
[BlackElo "2268"]
[Annotator "TA"]
[PlyCount "60"]
[EventDate "2023.03.11"]
[EventType "swiss"]
[EventCountry "POL"]
[SourceTitle "playchess.com"]
[Source "ChessBase"]
[SourceQuality "1"]
[TimeControl "40/5400+30:1800+30"]

{[%evp 13,60,31,36,38,28,24,33,10,24,24,29,0,21,16,12,13,12,15,13,8,6,9,20,17,16,25,12,0,0,0,0,-47,0,-154,-157,-143,-138,-787,-738,-1171,-1135,-29987,-29988,-29988,-29989,-29989,-29988,-29988,-29989]} 1. e4 {[%emt 0:00:03]} e5 {[%emt 0:00:09]} 2. Nf3 {[%emt 0:00:07]} Nc6 {[%emt 0:00:06]} 3. Bc4 {[%emt 0:00:05]} Nf6 {[%emt 0:00:07]} 4. d3 {[%emt 0:00:22]} Be7 {[%emt 0:00:23]} 5. O-O {[%emt 0:00:10]} d6 {[%emt 0:03:22]} 6. a4 {[%emt 0:00:43]} O-O {[%emt 0:00:12]} 7. Re1 {[%emt 0:00:08]} Be6 {[%emt 0:00:43] 7...h6 is setting a new trend.} 8. Bxe6 {[%emt 0:11:55] C55: Two Knights: 4 d3, 4 d4 exd4 5 e5 and Max Lange Attack.} fxe6 {[%emt 0:00:10]} 9. Nbd2 {[%emt 0:00:26]} Qe8 {[%emt 0:04:07]} 10. Nf1 {[%emt 0:08:35] White is slightly better.} Nh5 {[%emt 0:07:11]} (10... Nd4 $5 {[%cal Rf6g4]}) 11. c3 {[%emt 0:10:20]} Qg6 {[%emt 0:14:09] [#]} 12. d4 $146 {[%emt 0:09:37]} (12. Ng3 {simplifies} Nxg3 13. hxg3 a5 14. Bd2) ({Predecessor:} 12. h3 a6 13. N1h2 Rf7 14. b4 Rff8 15. Ra2 Nf4 16. Bxf4 exf4 17. d4 Qf7 18. Qb3 {1-0 Piorun,K (2634)-Pogosyan,S (2365) Wch Blitz St Petersburg 2018 (8)}) 12... Nf4 {[%emt 0:20:39]} 13. Bxf4 {[%emt 0:08:07]} Rxf4 {[%emt 0:00:12]} 14. d5 {[%emt 0:03:29]} exd5 {[%emt 0:11:59]} 15. Qxd5+ {[%emt 0:09:50]} Kh8 {[%emt 0:08:15]} 16. Ng3 {[%emt 0:01:42]} Raf8 {[%emt 0:02:04]} 17. Qb5 {[%emt 0:11:11]} Nd8 {[%emt 0:05:02][%cal Bc6d8,Bd8e6,Be6f4,Bf4d3][%mdl 32]} 18. Qd7 {[%emt 0:03:27][%csl LRc7,LRe7]} R4f7 {[%emt 0:07:29]} (18... Nc6 $2 19. Qxc7 Rb8 20. Nf5 $18) 19. Qxc7 {[%emt 0:04:09]} Ne6 {[%emt 0:00:04]} 20. Qxb7 {[%emt 0:05:54]} Nf4 $1 {[%emt 0:00:08][%cal Of4g2]} 21. Qxa7 {[%emt 0:02:55] a5 would be deadly.} h5 $1 {[%emt 0:00:10]} 22. a5 {[%emt 0:05:09]} (22. Qa6 $11 {deserves consideration.} h4 23. Nxe5 dxe5 24. Qxg6 {[%mdl 64] Remove Defender} Nxg6 25. Nf5) 22... h4 $15 {[%emt 0:02:27]} 23. a6 $2 {[%emt 0:00:57]} hxg3 $17 {[%emt 0:06:06]} 24. fxg3 {[%emt 0:00:41]} ({Much weaker is} 24. hxg3 Nxg2 25. Kxg2 Rxf3 $19) 24... Nd3 {[%emt 0:01:26][%csl LRb2,LRe1]} 25. Re2 $2 {[%emt 0:02:23][%mdl 8192] [#] Loses the game.} (25. Qe3 $17 Nxe1 26. Qxe1) 25... d5 $1 $19 {[%emt 0:00:36][%mdl 512]} 26. Qe3 {[%emt 0:00:22]} (26. Rf2 Qxe4) 26... Bc5 {[%emt 0:00:42]} 27. Nd4 {[%emt 0:00:01] [#]} Qxa6 $3 {[%emt 0:03:21][%mdl 576] Deflection, Back Rank. Black mates.} 28. Rd1 {[%emt 0:00:51]} exd4 {[%emt 0:00:22]} 29. cxd4 {[%emt 0:00:23]} Qa4 {[%emt 0:01:27]} 30. b3 {[%emt 0:00:55]} Qxd4 {[%emt 0:00:27] Ingenious play by Zdybel!   Weighted Error Value: White=0.99/Black=0.02 (flawless)} 0-1

[Event "Polish Youth B18 Championship 2023"]
[Site "Jastrzebia Gora"]
[Date "2023.03.14"]
[Round "4.4"]
[White "Budzisz, Adrian"]
[Black "Karolczuk, Iwo"]
[Result "1/2-1/2"]
[ECO "E15"]
[WhiteElo "2069"]
[BlackElo "2346"]
[Annotator "TA"]
[PlyCount "31"]
[EventDate "2023.03.11"]
[EventType "swiss"]
[EventCountry "POL"]
[SourceTitle "playchess.com"]
[Source "ChessBase"]
[SourceQuality "1"]
[TimeControl "40/5400+30:1800+30"]

{[%evp 18,31,10,15,9,0,0,-15,8,12,19,-4,0,0,7,0]} 1. d4 Nf6 {[%emt 0:00:12]} 2. c4 {[%emt 0:00:15]} e6 {[%emt 0:00:05]} 3. Nf3 {[%emt 0:00:03]} b6 {[%emt 0:00:06]} 4. g3 {[%emt 0:00:03]} Ba6 {[%emt 0:00:13]} 5. b3 {[%emt 0:00:09]} Bb4+ {[%emt 0:00:08]} 6. Bd2 {[%emt 0:00:04]} Be7 {[%emt 0:00:07]} 7. Nc3 {[%emt 0:00:02]} d5 {[%emt 0:00:59]} 8. cxd5 {[%emt 0:00:43]} exd5 {[%emt 0:00:07]} 9. Bg2 {[%emt 0:00:09]} O-O {[%emt 0:00:41]} 10. O-O {[%emt 0:00:06] The position is equal.} Nbd7 $1 {[%emt 0:04:16][%mdl 4] 10...Nbd7 is the modern continuation. E15: Queen's Indian: 4 g3 sidelines, 4 g3 Ba6 and 4 g3 Bb7 early deviations.} 11. a3 {[%emt 0:00:18]} Bb7 {[%emt 0:07:17] [#]} 12. Bf4 $146 {[%emt 0:05:00]} ({Predecessor:} 12. b4 c6 13. Qb3 Re8 14. a4 a5 15. bxa5 Rxa5 16. Rfb1 c5 17. e3 Bf8 18. dxc5 Bxc5 19. Nb5 Ra8 20. Nbd4 Ba6 21. Bf1 Bxf1 22. Kxf1 {1-0 Nielsen,P (2652)-Gelfand,B (2709) EU-ch Internet final blitz 2004 (3.5)}) 12... Nh5 {[%emt 0:02:52]} 13. Bc1 {[%emt 0:00:51]} Nhf6 {[%emt 0:07:05]} 14. Bf4 {[%emt 0:01:55]} Nh5 {[%emt 0:14:40]} 15. Bc1 {[%emt 0:00:07]} Nhf6 {[%emt 0:10:31]} 16. Bf4 {[%emt 0:02:35] A rather calm draw.   Weighted Error Value: White=0.07 (flawless) /Black=0.04 (flawless)} 1/2-1/2

[Event "Polish Youth B18 Championship 2023"]
[Site "Jastrzebia Gora"]
[Date "2023.03.14"]
[Round "4.5"]
[White "Luczak, Filip"]
[Black "Ciszewski, Krzysztof"]
[Result "1-0"]
[ECO "B21"]
[WhiteElo "2345"]
[BlackElo "2047"]
[Annotator "TA"]
[PlyCount "73"]
[EventDate "2023.03.11"]
[EventType "swiss"]
[EventCountry "POL"]
[SourceTitle "playchess.com"]
[Source "ChessBase"]
[SourceQuality "1"]
[TimeControl "40/5400+30:1800+30"]

{[%evp 14,73,-14,-37,-24,-27,-12,-28,-22,-60,-55,-46,-35,-44,-16,-58,-20,-15,-11,-10,-8,-29,-22,-1,-17,-62,-71,-132,-59,-94,-12,-191,-184,-248,-250,-237,-251,-377,-335,-338,-208,-417,65,64,80,62,381,380,359,144,328,343,1004,974,939,906,1766,1715,29986,29987,29989,29990]} 1. e4 {[%emt 0:00:04]} c5 {[%emt 0:00:20]} 2. d4 {[%emt 0:00:02]} cxd4 {[%emt 0:00:23]} 3. c3 {[%emt 0:00:03]} dxc3 {[%emt 0:00:37]} 4. Nxc3 {[%emt 0:00:04]} e6 {[%emt 0:01:14]} 5. Nf3 {[%emt 0:00:12]} Nc6 {[%emt 0:00:35]} 6. Bc4 {[%emt 0:00:52]} a6 {[%emt 0:01:07]} 7. O-O {[%emt 0:00:12]} Nge7 {[%emt 0:01:41]} 8. Bg5 {[%emt 0:01:35]} h6 {[%emt 0:03:11] B21: Sicilian: 2 f4 and Morra Gambit.} 9. Be3 {[%emt 0:01:58]} Ng6 {[%emt 0:01:47]} (9... b5 $5 {[%cal Rb5c4]} 10. Be2 Bb7 $11) 10. Qe2 {[%emt 0:08:06][%cal Oc3d5]} b5 {[%emt 0:17:26] Black has an edge.} 11. Bb3 {[%emt 0:01:17][%cal Oc3d5]} Be7 {[%emt 0:04:01]} 12. Nd4 {[%emt 0:18:10]} O-O {[%emt 0:05:25]} 13. f4 {[%emt 0:04:24][%cal Bf2f4,Bf4f5][%mdl 32]} Bb7 {[%emt 0:04:22] [#]} (13... Qc7 $5) 14. Qh5 $146 {[%emt 0:10:56]} ({Predecessor:} 14. f5 Nge5 15. Rad1 Nxd4 16. Bxd4 Qc7 17. Rc1 Nc6 18. Be3 Bf6 19. Qg4 Kh7 20. Qh5 {1-0 Bondareva,D (1707)-Wikar,M (1867) Wch U12 Girls 2016 (4)}) 14... Na5 {[%emt 0:12:48]} 15. f5 {[%emt 0:04:33]} Nxb3 {[%emt 0:00:53]} 16. axb3 {[%emt 0:00:53]} Nh8 $36 {[%emt 0:01:16][%mdl 2048] Black fights for an advantage.} 17. Qg4 {[%emt 0:07:26]} Bg5 {[%emt 0:03:04] This pair of bishops is nice.} 18. Bf2 {[%emt 0:00:32]} Re8 {[%emt 0:07:01]} 19. b4 {[%emt 0:04:15]} Rc8 {[%emt 0:02:02][%cal Ba8c8,Bc8c4,Bc4b4,Bb4b2][%mdl 32]} 20. Nb3 {[%emt 0:04:57]} (20. Rad1 $142) 20... d6 {[%emt 0:05:40]} (20... exf5 $17 21. Qxf5 d6) 21. Rad1 {[%emt 0:01:27]} Qe7 {[%emt 0:03:19]} (21... exf5 $17 22. exf5 Rc4) 22. Bg3 $2 {[%emt 0:02:20]} (22. Qg3 $11 {and White is okay.}) 22... exf5 $1 $19 {[%emt 0:05:02]} 23. exf5 {[%emt 0:02:57]} (23. Qxf5 {keeps fighting.} Be3+ 24. Kh1) 23... Rc4 {[%emt 0:00:15]} 24. Nd4 {[%emt 0:05:24]} Rxb4 {[%emt 0:01:09]} 25. Kh1 {[%emt 0:03:02]} (25. Rfe1 {was necessary.} Qd7 26. b3) 25... Rxb2 {[%emt 0:00:54]} 26. Nf3 {[%emt 0:00:39]} Rc8 {[%emt 0:09:04]} 27. Bxd6 $2 {[%emt 0:03:49] [#]} (27. Rfe1 Rc4 28. Rxe7 Bxe7 29. Bf4 Rxc3 30. Bxh6 Rxg2 {[%mdl 64] Remove Defender, Decoy} 31. Kxg2 Bxf3+ 32. Qxf3 Rxf3 33. Kxf3 gxh6 34. Ra1) 27... Qe8 $2 {[%emt 0:01:05]} (27... Qe3 $1 $19 28. Nd5 Bxd5 29. Rxd5 Rc1 30. Rxc1 Qxc1+ 31. Ng1 Rb1) 28. Rfe1 $1 $14 {[%emt 0:03:32]} Qc6 {[%emt 0:00:35]} 29. Ne4 {[%emt 0:04:28] Hoping for h4. White is more active.} Qc4 $2 {[%emt 0:05:09][%mdl 8192]} (29... Qc2 $1 $14 30. Nfxg5 hxg5) 30. h4 $18 {[%emt 0:02:14]} Bxe4 {[%emt 0:00:13]} 31. Rxe4 {[%emt 0:01:12]} Qc2 $2 {[%emt 0:01:35] [#]} (31... Qb3 $16 {might work better.} 32. Rde1 (32. Nxg5 hxg5 33. Kh2 Rb1 $14) 32... Bf6) 32. Ne1 $1 {[%emt 0:01:36]} Qf2 {[%emt 0:00:31]} (32... h5) 33. hxg5 {[%emt 0:00:48]} hxg5 {[%emt 0:00:45]} 34. Nd3 {[%emt 0:00:44]} Qc2 {[%emt 0:00:15]} 35. Nxb2 {[%emt 0:00:09]} Qxb2 {[%emt 0:00:02]} 36. Be5 {[%emt 0:01:02]} Qc2 {[%emt 0:00:04]} 37. Red4 {[%emt 0:00:38] Weighted Error Value: White=0.36/Black=0.70} 1-0